Cogmind - Beta 10.2 @@@ ROGUE MODE // 2021.02.07 @ 02:43:06 Player: aperiodic Result: Destroyed by B-75 Beast with Heavy Machine Gun Performance ------------- Evolutions (5) 2500 Regions Visited (21) 4200 Robots Destroyed (387) 1935 Value Destroyed (12695) 12695 Prototype IDs (75) 1500 Alien Tech Used (0) 0 Bonus (8619) 8619 TOTAL SCORE: 31449 Bonus ------- Triggered High Security 500 High Alert Combat Kills 4539 Follower Combat Kills 3352 Network Hubs Disabled 400 Aligned with FarCom 300 Destroyed Z-Imprinter 1000 Exposed GOLEM Chamber 500 Built Enhanced Grunts 300 A7 Reached Mainframe 300 Friendly Fire -2572 Cogmind --------- Core Integrity 0/1000 Matter 264/300 Energy 356/1100 System Corruption 8% Temperature Cool (12) Movement Core (1100) Ox21 Location -5/Factory Parts ------- > --- POWER (2) -------- (None) > --- PROPULSION (3) --- Assembled Alloy Leg > --- UTILITY (9) ------ High-capacity Storage Unit High-capacity Storage Unit Assembled Biocell Array Improved Hacking Suite > --- WEAPON (3) ------- (None) > --- INVENTORY (20) --- Zionite Biocell (402) Zionite Metafield Generator Makeshift Sensor Array Improved Armor Integrity Analyzer Advanced Weapon Cycler Zionite Weapon Casing Damper Plating Improved Recalibrator GOLEM Unit Peak State ------------ > --- POWER ------------ Quantum Reactor Quantum Reactor > --- PROPULSION ------- Armored Leg Assembled Alloy Leg Assembled Alloy Leg > --- UTILITY ---------- High-capacity Storage Unit High-capacity Storage Unit High-capacity Storage Unit Zionite Biocell Advanced Weapon Cycler Advanced Phase Shifter Centrium Medium Armor Plating Centrium Medium Armor Plating Improved Recalibrator > --- WEAPON ----------- Assembled Focal Cannon Assembled Focal Cannon Assembled Focal Cannon > --- INVENTORY -------- Zionite Biocell Zionite Metafield Generator Makeshift Sensor Array Improved Armor Integrity Analyzer Zionite Weapon Casing Damper Plating Advanced Shield Generator Improved Hacking Suite Improved Hacking Suite Improved System Shield GOLEM Unit GOLEM Unit Improved KE Penetrator Improved KE Penetrator Proton Missile Launcher Proton Missile Launcher Heavy Missile Launcher Long-range Missile Launcher Long-range Missile Launcher [Rating: 131] Favorites ----------- Power Zionite Light DM Reactor Engine Improved Ion Engine Power Core Reinforced Fission Core Reactor Zionite Light DM Reactor Propulsion Assembled Alloy Leg Treads Armored Treads Leg Assembled Alloy Leg Wheel Armored Wheel Utility High-capacity Storage Unit Device Makeshift Sensor Array Storage High-capacity Storage Unit Processor Experimental Targeting Computer Hackware Hacking Suite Protection Centrium Medium Armor Plating Weapon Assembled Focal Cannon Energy Gun Improved EM Shotgun Energy Cannon Assembled Focal Cannon Ballistic Gun Flak Gun Ballistic Cannon Improved Light Cannon Launcher Shock Bomb Launcher Special Weapon Mining Laser Impact Weapon Heavy Mace Slashing Weapon Mining Claw Build | -11 -10 -10 -9 -9 -9 -8 -8 -7 -7 -7 -7 -7 -6 -6 -6 -6 -6 -6 -6 -6 -5 ------- Run | Scr Mat Min Mat Min Exi Min Mat Fac Low Low Zio Dee Pro Fac Was Fac Ext Cet Arc Hub Fac Slots Evolved 10 | . . . 2 . . . 2 2 . . . . . 2 . . . . . . 2 Power 1 | . . . . . . . . . . . . . . 1 . . . . . . . Propulsion 1 | . . . . . . . . . . . . . . 1 . . . . . . . Utility 7 | . . . 2 . . . 1 2 . . . . . . . . . . . . 2 Weapon 1 | . . . . . . . 1 . . . . . . . . . . . . . . Parts Attached 317 | 7 24 5 33 8 26 2 32 52 4 5 1 49 . 3 2 5 6 8 1 7 37 Power 17 | 1 . 2 1 . 3 . . 2 . . . 3 . . 1 . . 2 . . 2 Engine 4 | 1 . 1 1 . 1 . . . . . . . . . . . . . . . . Core 3 | . . 1 . . 1 . . 1 . . . . . . . . . . . . . Reactor 10 | . . . . . 1 . . 1 . . . 3 . . 1 . . 2 . . 2 Propulsion 67 | 2 10 1 13 3 5 . 10 12 . 3 . 3 . 1 . 2 . 1 . . 1 Treads 32 | . 6 1 7 . 4 . 6 4 . 2 . 2 . . . . . . . . . Leg 6 | . . . . . 1 . . . . . . . . 1 . 2 . 1 . . 1 Wheel 29 | 2 4 . 6 3 . . 4 8 . 1 . 1 . . . . . . . . . Hover . | . . . . . . . . . . . . . . . . . . . . . . Flight . | . . . . . . . . . . . . . . . . . . . . . . Utility 115 | 2 5 . 6 . 10 . 2 21 3 . 1 29 . 2 1 1 6 2 1 5 18 Device 35 | . 1 . 1 . 2 . . 4 1 . . 10 . . 1 . 3 1 1 3 7 Storage 26 | 2 4 . 2 . 5 . . 2 . . . 7 . . . . . . . . 4 Processor 5 | . . . . . 1 . . . 1 . . 2 . . . 1 . . . . . Hackware 14 | . . . . . . . 2 7 . . . . . 2 . . . . . . 3 Protection 35 | . . . 3 . 2 . . 8 1 . 1 10 . . . . 3 1 . 2 4 Artifact . | . . . . . . . . . . . . . . . . . . . . . . Weapon 118 | 2 9 2 13 5 8 2 20 17 1 2 . 14 . . . 2 . 3 . 2 16 Energy Gun 23 | 1 6 . 3 3 1 . 4 . . . . 5 . . . . . . . . . Energy Cannon 3 | . . . 1 . . . . . . . . 2 . . . . . . . . . Ballistic Gun 48 | 1 1 1 1 . 3 1 11 10 1 1 . 6 . . . 1 . 1 . 2 7 Ballistic Cannon 5 | . . . 5 . . . . . . . . . . . . . . . . . . Launcher 28 | . . 1 3 1 1 1 4 3 . 1 . 1 . . . 1 . 2 . . 9 Special Weapon 2 | . 2 . . . . . . . . . . . . . . . . . . . . Impact Weapon 4 | . . . . . . . . 4 . . . . . . . . . . . . . Slashing Weapon 5 | . . . . 1 3 . 1 . . . . . . . . . . . . . . Piercing Weapon . | . . . . . . . . . . . . . . . . . . . . . . Special Melee Weapon . | . . . . . . . . . . . . . . . . . . . . . . Unidentified Prototypes 20 | . . . 1 . 5 . 2 . . . . 8 . 1 . . . 2 . . 1 Parts Lost 47 | . 1 1 1 1 5 . 1 3 1 . . 5 . . . . 1 . . 1 26 Power 6 | . . 1 . . 1 . . . . . . . . . . . . . . . 4 Propulsion 5 | . . . . . 2 . . . . . . . . . . . . . . . 3 Utility 18 | . . . 1 . 2 . . 2 1 . . 1 . . . . 1 . . . 10 Weapon 18 | . 1 . . 1 . . 1 1 . . . 4 . . . . . . . 1 9 Highest Loss Streak 9 | . 1 1 1 1 4 . 1 1 1 . . 4 . . . . 1 . . 1 9 Average Slot Usage (%) 95 | . 99 100 98 100 96 100 99 96 86 84 82 89 100 93 99 100 88 98 100 94 92 Engine 1 | . 14 8 6 11 3 . . . . . . . . . . . . . . . . Core 1 | . . 5 4 . 5 . . . 7 7 7 . . . . . . . . . . Reactor 6 | . . . . . 1 11 9 6 . . . 6 7 6 12 13 6 11 13 13 7 Treads 6 | . 14 28 12 3 15 22 13 2 . . . 6 . . . . . . . . . Leg 6 | . . . . . . . . . . . . 4 15 20 20 20 20 20 20 20 15 Wheel 4 | . 13 . 9 18 5 . 4 9 7 6 7 1 . . . . . . . . . Device 4 | . 6 . 4 . . . . 1 6 7 6 8 7 5 6 6 4 6 6 5 12 Storage 25 | . 21 28 27 33 30 44 27 23 23 23 23 18 30 26 26 26 26 26 26 25 21 Processor 4 | . . . . . 5 . . . 6 7 7 8 7 6 6 11 6 6 6 4 . Hackware 4 | . . . . . . . 17 24 . . . . . . 6 1 . . . . 5 Protection 5 | . . . 10 11 5 . . 4 9 7 7 9 7 5 . . 3 6 6 3 9 Energy Gun 3 | . 13 14 10 10 . . 10 2 . . . 3 . . . . . . . . . Energy Cannon 5 | . . . . . . . . . . . . 6 15 13 13 11 16 14 13 12 9 Ballistic Gun 9 | . 13 13 2 . 14 21 15 18 23 22 23 6 . . . . 1 2 . 4 3 Launcher 2 | . . . . . 2 . . . . . . 4 7 6 6 6 1 2 6 1 2 Naked Turns . | . . . . . . . . . . . . . . . . . . . . . . Heaviest Build 227 | 17 58 59 97 97 129 120 120 158 158 148 148 150 150 150 164 165 193 195 186 227 201 Greatest Support 84 | 20 40 40 40 40 40 40 40 40 28 28 28 60 60 84 84 84 84 84 76 76 76 Greatest Overweight (x) 21 | . 1 1 4 4 4 2 4 5 5 5 5 5 2 1 1 1 2 2 2 3 21 Average Overweight (x) 2 | . . 1 2 3 2 2 2 4 4 5 5 2 2 1 1 1 1 2 2 2 2 Largest Inventory Capacity 32 | 8 18 18 26 26 32 32 32 28 28 28 28 28 28 28 28 28 28 28 28 28 28 Average Capacity 25 | 6 10 18 22 26 21 32 26 27 28 28 28 21 28 28 28 28 28 28 28 28 27 Most Carried 32 | 6 15 18 26 26 32 32 32 28 28 26 28 28 28 27 28 28 28 28 28 28 27 Average Carried 23 | 4 9 17 22 25 16 31 26 26 25 25 26 16 28 27 27 27 26 27 27 27 19 Final Capacity 32 | 8 18 18 26 26 32 32 26 28 28 28 28 28 28 28 28 28 28 28 28 28 20 Final Carried 32 | 6 15 18 26 26 32 32 26 28 25 26 26 28 28 27 28 27 28 28 28 25 12 Class Distribution -------------------- 41% | Hauler-Mutant 11% | Mutant 8% | Hauler-Gunner 7% | Hauler-Skirmisher 5% | Hauler-Tank 4% | Commander-Mutant 3% | Hacker-Gunner 3% | Scavenger-Mutant 3% | Commander-Gunner Dominant Class ---------------- Mutant | -10/Materials Mutant | -10/Mines Hauler-Mutant | -9/Materials Hauler-Mutant | -9/Mines Hauler-Mutant | -9/Exiles Hauler-Mutant | -8/Mines Hauler-Gunner | -8/Materials Hacker-Gunner | -7/Factory Hauler-Skirmisher | -7/Lower Caves Hauler-Skirmisher | -7/Lower Caves Hauler-Skirmisher | -7/Zion Hauler-Mutant | -7/Deep Caves Hauler-Mutant | -6/Proximity Caves Hauler-Mutant | -6/Factory Hauler-Mutant | -6/Waste Hauler-Mutant | -6/Factory Hauler-Golem | -6/Extension Commander-Gunner | -6/Cetus Commander-Mutant | -6/Archives Commander-Golem | -6/Hub_04(d) Scavenger-Mutant | -5/Factory Resources | -11 -10 -10 -9 -9 -9 -8 -8 -7 -7 -7 -7 -7 -6 -6 -6 -6 -6 -6 -6 -6 -5 ----------- Run | Scr Mat Min Mat Min Exi Min Mat Fac Low Low Zio Dee Pro Fac Was Fac Ext Cet Arc Hub Fac Matter Collected 8424 | 300 618 81 552 233 451 558 981 1711 69 252 44 617 135 . 88 176 60 126 10 75 1287 Remotely . | . . . . . . . . . . . . . . . . . . . . . . Salvage Created 18298 | 134 565 105 715 414 451 510 1500 2117 . 68 . 885 74 122 1484 1858 914 458 298 1496 4130 Parts 923 | 8 34 11 42 26 75 23 84 132 . 2 . 40 8 8 26 84 26 23 23 64 184 Haulers Intercepted 21 | . 1 . 4 . . . 5 5 . . . . . . . 1 1 . . 2 2 Recyclers Shooed 7 | . 1 . . . . . 1 . . . . . . . . 3 . . . . 2 Parts Field Recycled . | . . . . . . . . . . . . . . . . . . . . . . Retrieved Matter . | . . . . . . . . . . . . . . . . . . . . . . Parts Self-Destructed 11 | . . . . . . . . . . 7 . . 4 . . . . . . . . Prevented 2 | . . . . . . . . . . . . . 2 . . . . . . . . Kills | -11 -10 -10 -9 -9 -9 -8 -8 -7 -7 -7 -7 -7 -6 -6 -6 -6 -6 -6 -6 -6 -5 ------- Run | Scr Mat Min Mat Min Exi Min Mat Fac Low Low Zio Dee Pro Fac Was Fac Ext Cet Arc Hub Fac Combat Hostiles Destroyed 249 | . 11 5 12 13 5 7 22 30 . 4 . 12 3 2 6 20 6 8 . 7 76 Melee 2 | . . . . . 1 . . . . . . . . . . . . . . . 1 Guns 88 | . 11 3 2 4 . 5 12 21 . 2 . 5 . . . 1 . 1 . 1 20 Cannons 65 | . . . 6 5 . . . . . . . 3 . 2 6 10 6 7 . 3 17 AOE 86 | . . 2 4 4 4 2 10 9 . 2 . 2 3 . . 5 . . . 3 36 Classes Destroyed 23 | 2 6 . 2 1 2 1 2 1 . . . 2 . . 1 1 . . . 1 1 Worker 37 | . 3 1 1 2 . 2 3 7 . . . . . . . 3 . . . 11 4 Builder 15 | . . . . . . . 1 1 . . . . . . . 5 . . . 1 7 Tunneler 6 | 2 . . . 3 . . . . . . . . . . . 1 . . . . . Hauler 21 | . 1 . 4 . . . 5 5 . . . . . . . 1 1 . . 2 2 Recycler 17 | 1 . . . 2 . 2 1 3 . . . . . . . 2 3 . . . 3 Mechanic 5 | . . . . . . . 1 1 . . . . . . . . . . . . 3 Operator 17 | . 2 . 2 . . . . 1 . . . . . . . 2 . . 9 1 . Turret 1 | . . . . . 1 . . . . . . . . . . . . . . . . Watcher 15 | . 1 . 2 . . . 3 5 . . . . . . . . . 1 . 1 2 Swarmer 57 | . 3 4 . 9 . . 5 10 . 2 . . 3 . . 2 . 2 . 3 14 Saboteur 3 | . . . . . . . . . . . . . . . . . . . . . 3 Grunt 88 | . 8 1 6 3 . 6 7 8 . 1 . . . . . 7 . 2 . 1 38 Brawler 10 | . . . 1 . . . 1 1 . . . . . . . 3 . . . . 4 Duelist 8 | . . . . . . . . . . . . . . . . 2 . . . . 6 Protector 3 | . . . . . . . . . . . . . . . . . . . . 1 2 Sentry 32 | . . . 5 . . . 9 5 . 1 . . . 1 . 4 6 . . . 1 Hunter 12 | . . . . . . 1 . 1 . . . . . 1 . 1 . 1 . 2 5 Programmer 9 | . . . . . . . . 5 . . . . . . . 1 . . . . 3 Compactor 6 | . . . . . . . . . . . . . . . 6 . . . . . . Cetus Guard 3 | . . . . . . . . . . . . . . . . . . 3 . . . Enhanced Grunt 5 | . . . . . . . . . . . . . . . . . . . . 5 . Zionite 8 | . . . . . 8 . . . . . . . . . . . . . . . . Z-Technician 5 | . . . . . . . . . . . . 5 . . . . . . . . . Z-Light 1 | . . . . . . . . . . . . 1 . . . . . . . . . Assembled 11 | . . . . 1 4 . . . . . . 6 . . . . . . . . . Golem 4 | . . . . . . . . . . . . 4 . . . . . . . . . Thug 1 | . . . . . . . . . . . . . . . . . . . . 1 . Savage 2 | . . . . . . . . . . . . . . . . . . . . 2 . Best Kill Streak 21 | 2 5 2 4 4 6 4 6 7 . 3 . 4 3 1 1 14 2 3 4 13 21 Combat Bots Only 12 | . 4 2 4 3 4 3 4 5 . 3 . 3 3 1 1 8 2 3 . 3 12 Max Kills in Single Turn 13 | 1 1 2 1 2 2 2 3 3 . 1 . 2 2 1 1 3 1 2 1 13 4 Gunslinging 1 | . . . . . . . . . . . . . . . . . . . . . 1 Exploded 3 | . . 2 1 2 2 1 3 3 . 1 . 2 2 . . 1 . . . 3 3 Melee 1 | . . . . . 1 . . . . . . . . . . . . . . . 1 Uniques/NPCs Destroyed 5 | . . . . . 4 . . . . . . 1 . . . . . . . . . 8R-AWN (-9/Exiles) EX-DEC (-9/Exiles) EX-BIN (-9/Exiles) EX-HEX (-9/Exiles) Z-Imprinter (-7/Deep Caves) Combat | -11 -10 -10 -9 -9 -9 -8 -8 -7 -7 -7 -7 -7 -6 -6 -6 -6 -6 -6 -6 -6 -5 -------- Run | Scr Mat Min Mat Min Exi Min Mat Fac Low Low Zio Dee Pro Fac Was Fac Ext Cet Arc Hub Fac Damage Taken 15440 | . 631 105 497 257 1103 257 476 1584 222 93 . 1728 139 26 34 933 492 235 . 674 5954 Core 2162 | . 90 . 28 39 198 45 31 239 . . . 248 18 . . 120 45 15 . 29 1017 Absorbed by Shields 979 | . . . . . . . . . . . . 152 . . . . 28 176 . . 623 Core Remaining (%) 63 | 100 . 64 . . . 22 94 . . . . . 27 . . . . . . 75 . Volleys Fired 902 | 11 64 9 48 34 37 28 73 99 . 7 . 81 3 4 67 71 30 28 17 27 164 Largest 3 | 2 2 2 2 2 2 2 3 3 . 3 . 3 2 2 2 2 3 3 2 3 3 Hottest 138 | 70 100 76 107 84 60 60 123 103 . 84 . 138 50 50 50 55 75 85 50 85 95 Shots Fired 1793 | 22 123 17 87 63 69 49 179 277 . 15 . 121 4 8 133 113 76 69 34 61 273 Gun 1021 | 22 119 16 41 29 65 46 171 272 . 12 . 82 . . . 6 . 9 . 6 125 Cannon 665 | . . . 41 32 . . . . . . . 34 2 8 133 89 76 58 34 51 107 Launcher 103 | . . 1 5 2 4 3 8 5 . 3 . 5 2 . . 18 . 2 . 4 41 Special 4 | . 4 . . . . . . . . . . . . . . . . . . . . Kinetic 860 | 11 60 8 47 32 65 46 119 258 . 12 . 56 . . . 6 . 9 . 6 125 Thermal 707 | 11 63 8 17 . . . . . . . . 50 2 8 133 89 76 58 34 51 107 Explosive 58 | . . 1 5 2 4 3 8 5 . 3 . . . . . . . . . . 27 Electromagnetic 168 | . . . 18 29 . . 52 14 . . . 15 2 . . 18 . 2 . 4 14 Robot Hit Streak 35 | 10 16 19 11 13 9 7 16 14 . 6 . 31 32 35 22 17 20 27 21 16 24 Robot Miss Streak 9 | 1 3 1 5 5 3 2 4 8 . 6 . 9 . 1 2 3 2 1 1 3 5 Penetration Max 2 | . . . . . . . 1 . . . . . . . . 2 . . . 1 1 Secondary Targets 9 | . . . . . . . 1 3 . . . 1 . . . . . . . . 4 Max Gunslinging Chain 1 | . . . . . . . 1 1 . . . 1 . . . . . . . . 1 Shots Hit Robots 1267 | 18 89 12 62 35 63 28 120 215 . 14 . 76 1 5 108 76 41 57 27 32 188 Core Hits 806 | 4 31 9 29 23 30 18 56 153 . 13 . 80 3 3 16 55 16 22 16 45 184 Critical Hits 79 | . . . . 2 13 11 14 3 . . . . . . . 5 . 2 . 2 27 Critical Kills 37 | . . . . 1 5 8 5 1 . . . . . . . 5 . 1 . 1 10 Critical Parts Destroyed 37 | . . . . 1 6 3 7 2 . . . . . . . . . 1 . 1 16 Melee Attacks 57 | . . . . 4 45 . 1 7 . . . . . . . . . . . . . Impact 7 | . . . . . . . . 7 . . . . . . . . . . . . . Slashing 50 | . . . . 4 45 . 1 . . . . . . . . . . . . . . Piercing . | . . . . . . . . . . . . . . . . . . . . . . Sneak Attacks . | . . . . . . . . . . . . . . . . . . . . . . Combat Hostiles . | . . . . . . . . . . . . . . . . . . . . . . Follow-up Attacks 5 | . . . . . 5 . . . . . . . . . . . . . . . . Damage Inflicted 49104 | 199 1068 255 1696 907 1422 828 2951 4392 . 415 . 2286 114 236 4687 4571 1966 2427 1078 4010 13596 Guns 13057 | 199 1068 151 527 288 472 374 1722 3341 . 120 . 1082 . . . 144 . 145 . 116 3308 Cannons 19528 | . . . 658 251 . . . . . . . 884 . 236 4687 2672 1966 2169 1078 1576 3351 Explosions 15866 | . . 104 511 368 314 454 1229 1051 . 295 . 320 114 . . 1753 . 113 . 2303 6937 Melee 636 | . . . . . 636 . . . . . . . . . . . . . . . . Ramming 17 | . . . . . . . . . . . . . . . . 2 . . . 15 . Kinetic 11170 | 101 465 50 684 251 472 374 931 3028 . 120 . 981 . . . 144 . 145 . 116 3308 Thermal 21426 | 98 603 101 299 170 . . 294 153 . . . 936 36 236 4687 3107 1966 2169 1078 1658 3835 Explosive 9124 | . . 104 428 198 314 454 935 898 . 295 . . . . . . . . . . 5498 Electromagnetic 6731 | . . . 285 288 . . 791 313 . . . 369 78 . . 1318 . 113 . 2221 955 Impact . | . . . . . . . . . . . . . . . . . . . . . . Slashing 636 | . . . . . 636 . . . . . . . . . . . . . . . . Piercing . | . . . . . . . . . . . . . . . . . . . . . . Highest Corruption 8 | . . . . . . . . 1 1 1 1 . . . . 1 1 1 1 5 8 Average Corruption 1 | . . . . . . . . 1 1 1 1 . . . . 1 1 1 1 1 2 Corruption Purged . | . . . . . . . . . . . . . . . . . . . . . . Effects 46 | . . . . . . . . 5 1 4 . . . . . 1 7 2 2 8 16 Message Errors 23 | . . . . . . . . . 1 3 . . . . . . 6 1 1 3 8 Matter Fused 1 | . . . . . . . . . . . . . . . . . . . . . 1 Energy Discharges 8 | . . . . . . . . 4 . 1 . . . . . . 1 1 1 . . Data Loss (minor) 4 | . . . . . . . . . . . . . . . . 1 . . . 3 . Misfires 2 | . . . . . . . . . . . . . . . . . . . . 1 1 Targeting Errors 6 | . . . . . . . . 1 . . . . . . . . . . . 1 4 Weapon Failures 2 | . . . . . . . . . . . . . . . . . . . . . 2 Overload Shots . | . . . . . . . . . . . . . . . . . . . . . . Overflow Damage 1475 | . . 5 21 37 41 5 120 64 . 7 . 92 . . 11 210 165 22 65 109 501 Projectiles 745 | . . . 2 2 . . . . . . . 28 . . 11 186 165 22 65 37 227 Explosions 730 | . . 5 19 35 41 5 120 64 . 7 . 64 . . . 24 . . . 72 274 Melee . | . . . . . . . . . . . . . . . . . . . . . . Knockbacks 4 | . . . 2 2 . . . . . . . . . . . . . . . . . Impact . | . . . . . . . . . . . . . . . . . . . . . . Kinetic 4 | . . . 2 2 . . . . . . . . . . . . . . . . . Secondary . | . . . . . . . . . . . . . . . . . . . . . . Self-Inflicted Damage 450 | . . . . 12 . . . 56 . . . . 87 . . 9 . . . 46 240 Shots 21 | . . . . 1 . . . 1 . . . . 4 . . 2 . . . 4 9 Rammed . | . . . . . . . . . . . . . . . . . . . . . . Targets Rammed 3 | . . . . . . . . . . . . . . . . 1 . . . 2 . Kicked 3 | . . . . . . . . . . . . . . . . 1 . . . 2 . Crushed . | . . . . . . . . . . . . . . . . . . . . . . Highest Temperature 506 | 45 213 63 135 162 189 1 113 147 . 84 . 472 40 . 251 400 32 141 60 506 211 Average Temperature 70 | 16 60 22 34 46 44 1 16 33 . 33 . 151 15 . 100 88 8 42 20 145 38 Received Heat Transfer 3579 | . 327 18 207 30 . 99 162 357 12 21 . 510 . . . 207 108 10 . 21 1490 Effects 22 | . . . . . . . . . . . . 10 . . 1 4 . . . 7 . Shutdowns 7 | . . . . . . . . . . . . 2 . . . 1 . . . 4 . Energy Bleed 1 | . . . . . . . . . . . . 1 . . . . . . . . . Interference 4 | . . . . . . . . . . . . 1 . . 1 2 . . . . . Matter Decay 1 | . . . . . . . . . . . . . . . . . . . . 1 . Short Circuit 5 | . . . . . . . . . . . . 2 . . . 1 . . . 2 . Damage (major) 4 | . . . . . . . . . . . . 4 . . . . . . . . . Siege Activations . | . . . . . . . . . . . . . . . . . . . . . . Robots Corrupted 14 | . . . . . . . 1 . . . . 2 . . . 4 . . . 5 2 Combat Hostiles 8 | . . . . . . . . . . . . 2 . . . 4 . . . . 2 Parts Fried 39 | . . . 1 1 . . 6 . . . . . . . . 5 . 2 . 19 5 Impact Corruptions . | . . . . . . . . . . . . . . . . . . . . . . Robots Melted . | . . . . . . . . . . . . . . . . . . . . . . Combat Hostiles . | . . . . . . . . . . . . . . . . . . . . . . Parts Melted 4 | . . . . 1 . . . . . . . . . . . . 1 1 . . 1 Heat Transferred 14760 | 296 1585 259 568 200 . . 350 150 . . . 586 50 125 2700 1975 1125 1225 650 718 2198 Parts Sabotaged 3 | . . . . . . . . . . . . . . . . . . . . . 3 Parts Stolen . | . . . . . . . . . . . . . . . . . . . . . . Parts Stripped . | . . . . . . . . . . . . . . . . . . . . . . Power Chain Reactions 24 | . . . 2 2 . . 5 2 . . . 1 2 . . 3 . . . 2 5 Missiles Intercepted . | . . . . . . . . . . . . . . . . . . . . . . Alert | -11 -10 -10 -9 -9 -9 -8 -8 -7 -7 -7 -7 -7 -6 -6 -6 -6 -6 -6 -6 -6 -5 ------- Run | Scr Mat Min Mat Min Exi Min Mat Fac Low Low Zio Dee Pro Fac Was Fac Ext Cet Arc Hub Fac Peak Influence 3049 | 15 204 179 503 312 . 150 575 486 . . . . . 68 37 1240 552 853 600 2103 3049 Initial 1025 | . 9 44 8 172 . . . 184 . . . . . . 23 . 535 308 310 140 1025 Average 447 | 6 60 91 301 157 . 33 394 205 . . . . . 10 11 827 390 649 478 1096 1909 Maximum Alert Level 5 | . 1 . 2 1 . . 2 2 . . . . . . . 4 2 3 2 5 5 Low Security (%) 43 | 100 92 100 30 85 . 100 17 55 . . . . . 100 100 4 7 . . 10 . Level 1 16 | . 7 . 21 14 . . 17 43 . . . . . . . . 47 6 2 2 . Level 2 21 | . . . 48 . . . 65 1 . . . . . . . 24 45 48 97 9 . Level 3 7 | . . . . . . . . . . . . . . . . 55 . 44 . 8 16 Level 4 5 | . . . . . . . . . . . . . . . . 15 . . . 61 8 Level 5 5 | . . . . . . . . . . . . . . . . . . . . 7 72 High Security . | . . . . . . . . . . . . . . . . . . . . . 1 Max Security . | . . . . . . . . . . . . . . . . . . . . . . Squads Dispatched 61 | . 4 . 6 . . . . 8 . . . . . . . 15 3 . . 8 17 Investigation 17 | . 1 . 4 . . . . 1 . . . . . . . 6 2 . . 2 1 Extermination 7 | . . . . . . . . 4 . . . . . . . 1 . . . 1 1 Reinforcement 17 | . 3 . 2 . . . . 2 . . . . . . . 2 1 . . 1 6 Assault 17 | . . . . . . . . . . . . . . . . 5 . . . 3 9 Garrison 3 | . . . . . . . . 1 . . . . . . . 1 . . . 1 . Intercept . | . . . . . . . . . . . . . . . . . . . . . . Construction Impeded 6 | . . . 1 . . . . 1 . . . . . . . 1 . . . . 3 Haulers Reinforced 1 | . . . . . . . . 1 . . . . . . . . . . . . . Stealth | -11 -10 -10 -9 -9 -9 -8 -8 -7 -7 -7 -7 -7 -6 -6 -6 -6 -6 -6 -6 -6 -5 --------- Run | Scr Mat Min Mat Min Exi Min Mat Fac Low Low Zio Dee Pro Fac Was Fac Ext Cet Arc Hub Fac Distress Signals 20 | . 1 . 3 1 . . 3 . . . . . . . . 5 3 . . 1 3 Communications Jammed . | . . . . . . . . . . . . . . . . . . . . . . Distress Signals . | . . . . . . . . . . . . . . . . . . . . . . Times Spotted 463 | . 25 11 31 13 14 6 34 39 1 5 . 12 2 2 6 52 26 19 7 43 115 Peak Tracking Total 17 | . 4 3 6 3 8 3 5 4 1 3 . 6 . 1 3 7 11 5 1 17 13 Tactical Retreats 24 | . . 2 . 1 2 1 3 1 1 1 . 1 . . . . 2 . . . 9 Traps | -11 -10 -10 -9 -9 -9 -8 -8 -7 -7 -7 -7 -7 -6 -6 -6 -6 -6 -6 -6 -6 -5 ------- Run | Scr Mat Min Mat Min Exi Min Mat Fac Low Low Zio Dee Pro Fac Was Fac Ext Cet Arc Hub Fac Traps Triggered 10 | . . . 1 . . . . 1 . . . . . 1 . 4 1 . . 1 1 Indirectly 1 | . . . . . . . . . . . . . . . . . . . . 1 . Trap Hack Attempts . | . . . . . . . . . . . . . . . . . . . . . . Triggered . | . . . . . . . . . . . . . . . . . . . . . . Disarmed 3 | . . . . . . . 3 . . . . . . . . . . . . . . Reprogrammed . | . . . . . . . . . . . . . . . . . . . . . . Reused 1 | . . . . . 1 . . . . . . . . . . . . . . . . Traps Extracted . | . . . . . . . . . . . . . . . . . . . . . . Installed 2 | . . . . . 2 . . . . . . . . . . . . . . . . Triggered 4 | . . . . . . . 1 . . 2 . . 1 . . . . . . . . Exploded 3 | . . . . . 3 . . . . . . . . . . . . . . . . Machines | -11 -10 -10 -9 -9 -9 -8 -8 -7 -7 -7 -7 -7 -6 -6 -6 -6 -6 -6 -6 -6 -5 ---------- Run | Scr Mat Min Mat Min Exi Min Mat Fac Low Low Zio Dee Pro Fac Was Fac Ext Cet Arc Hub Fac Machines Disabled 74 | . . 1 3 4 10 . 6 . . . . 3 . . . 7 3 2 3 20 12 Max in Single Turn 14 | . . 1 1 2 1 . 1 . . . . 1 . . . 1 1 1 1 14 3 Garrison Access 7 | . . . . . . . 1 1 . . . . . . . 1 . . . 2 2 Network Hub 2 | . . . . . . . . . . . . . . . . . . . . 2 . Machines Sabotaged . | . . . . . . . . . . . . . . . . . . . . . . Garrisons Compromised . | . . . . . . . . . . . . . . . . . . . . . . Overloaded Fab Kills . | . . . . . . . . . . . . . . . . . . . . . . Fab Network Shutdowns . | . . . . . . . . . . . . . . . . . . . . . . Hacking | -11 -10 -10 -9 -9 -9 -8 -8 -7 -7 -7 -7 -7 -6 -6 -6 -6 -6 -6 -6 -6 -5 --------- Run | Scr Mat Min Mat Min Exi Min Mat Fac Low Low Zio Dee Pro Fac Was Fac Ext Cet Arc Hub Fac Machines Accessed 89 | . 5 . 9 2 2 1 13 25 . . 1 . . 1 . 12 9 . 1 4 4 Terminals 59 | . 3 . 5 2 . 1 9 16 . . . . . . . 9 9 . . 3 2 Fabricators 2 | . . . . . . . . 2 . . . . . . . . . . . . . Repair Stations 10 | . 1 . 2 . . . 2 4 . . . . . . . . . . . . 1 Recycling Units 5 | . 1 . 1 . . . . 1 . . . . . 1 . 1 . . . . . Scanalyzers 4 | . . . 1 . . . 1 1 . . . . . . . 1 . . . . . Garrison Access 5 | . . . . . . . 1 1 . . . . . . . 1 . . . 1 1 Total Hacks 262 | . 13 . 26 2 2 4 60 73 . . 4 . . 2 . 29 21 . 2 6 18 Successful 147 | . 9 . 18 . 2 2 36 42 . . 4 . . . . 12 9 . 2 1 10 Failed 115 | . 4 . 8 2 . 2 24 31 . . . . . 2 . 17 12 . . 5 8 Catastrophic 20 | . . . 1 1 . . 2 3 . . . . . . . 7 3 . . 1 2 Database Lockouts . | . . . . . . . . . . . . . . . . . . . . . . Manual 107 | . 3 . 8 2 1 4 36 23 . . 6 . . 2 . 8 7 1 . 2 4 Terminals 186 | . 6 . 18 2 . 4 47 50 . . . . . . . 20 21 . . 5 13 Fabricators 3 | . . . . . . . . 3 . . . . . . . . . . . . . Repair Stations 36 | . 6 . 4 . . . 8 14 . . . . . . . . . . . . 4 Recycling Units 6 | . 1 . 1 . . . . 1 . . . . . 2 . 1 . . . . . Scanalyzers 15 | . . . 3 . . . 4 3 . . . . . . . 5 . . . . . Garrison Access 8 | . . . . . . . 1 2 . . . . . . . 3 . . . 1 1 Terminal Hacks 67 | . 3 . 9 . 2 2 12 15 . . 4 . . . . 6 7 . 2 . 5 Record 3 | . . . . . 1 . . . . . . . . . . . . . 2 . . Part Schematic 6 | . . . . . . . . 2 . . 4 . . . . . . . . . . Robot Analysis 2 | . . . 1 . . . . 1 . . . . . . . . . . . . . Prototype ID Bank 13 | . 1 . 1 . . 2 4 3 . . . . . . . 1 1 . . . . Open Door 4 | . . . . . . . . . . . . . . . . 1 3 . . . . Branch Access Points 2 | . . . . . . . . 1 . . . . . . . . . . . . 1 Machine Index 2 | . . . . . . . . 1 . . . . . . . . . . . . 1 Terminal Index 3 | . . . . . . . 1 1 . . . . . . . 1 . . . . . Repair Station Index 1 | . . . . . . . 1 . . . . . . . . . . . . . . Unreport Threat 7 | . . . . . . . 1 1 . . . . . . . 1 2 . . . 2 Locate Traps 14 | . 2 . 4 . . . 3 3 . . . . . . . 1 . . . . 1 Disarm Traps 1 | . . . . . . . 1 . . . . . . . . . . . . . . Recall Investigation 1 | . . . 1 . . . . . . . . . . . . . . . . . . Hauler Manifests 4 | . . . 2 . . . 1 1 . . . . . . . . . . . . . Zone Layout 3 | . . . . . . . . 1 . . . . . . . 1 1 . . . . EX-Prototype ID Bank 1 | . . . . . 1 . . . . . . . . . . . . . . . . Fabricator Hacks 2 | . . . . . . . . 2 . . . . . . . . . . . . . Load Schematic 1 | . . . . . . . . 1 . . . . . . . . . . . . . Build 1 | . . . . . . . . 1 . . . . . . . . . . . . . Repair Station Hacks 28 | . 5 . 3 . . . 6 12 . . . . . . . . . . . . 2 Scan Component 15 | . 3 . 2 . . . 3 6 . . . . . . . . . . . . 1 Repair 13 | . 2 . 1 . . . 3 6 . . . . . . . . . . . . 1 Recycling Unit Hacks . | . . . . . . . . . . . . . . . . . . . . . . Scanalyzer 13 | . . . 2 . . . 4 3 . . . . . . . 4 . . . . . Insert Component 6 | . . . 1 . . . 2 1 . . . . . . . 2 . . . . . Analyze 7 | . . . 1 . . . 2 2 . . . . . . . 2 . . . . . Garrison Access Hacks 3 | . . . . . . . 1 1 . . . . . . . . . . . . 1 Seal Access 3 | . . . . . . . 1 1 . . . . . . . . . . . . 1 Unauthorized Hacks 34 | . 1 . 4 . . . 13 9 . . . . . . . 2 2 . . 1 2 Terminals 28 | . . . 3 . . . 13 7 . . . . . . . 1 2 . . . 2 Track 20 | . . . 3 . . . 8 5 . . . . . . . 1 2 . . . 1 Assimilate 2 | . . . . . . . 1 1 . . . . . . . . . . . . . Botnet 2 | . . . . . . . 2 . . . . . . . . . . . . . . Disrupt 1 | . . . . . . . 1 . . . . . . . . . . . . . . Operators 3 | . . . . . . . 1 1 . . . . . . . . . . . . 1 Fabricators 1 | . . . . . . . . 1 . . . . . . . . . . . . . Haulers 1 | . . . . . . . . 1 . . . . . . . . . . . . . Repair Stations . | . . . . . . . . . . . . . . . . . . . . . . Recycling Units 4 | . 1 . 1 . . . . 1 . . . . . . . 1 . . . . . Mask 2 | . . . . . . . . 1 . . . . . . . 1 . . . . . Tunnel 2 | . 1 . 1 . . . . . . . . . . . . . . . . . . Scanalyzers . | . . . . . . . . . . . . . . . . . . . . . . Garrison Access 1 | . . . . . . . . . . . . . . . . . . . . 1 . Jam 1 | . . . . . . . . . . . . . . . . . . . . 1 . Data Cores Recovered 2 | . . . 1 . . . . . . . . . . . . 1 . . . . . Used 2 | . . . 1 . . . . . . . . . . . . 1 . . . . . Hacking Detections 74 | . 4 . 8 2 . 1 12 23 . . . . . 1 . 11 6 1 . 3 2 Full Trace Events 8 | . . . 2 . . . . 1 . . . . . . . 3 2 . . . . Feedback Events 1 | . . . . . . . . 1 . . . . . . . . . . . . . Hackware Fried 1 | . . . . . . . . 1 . . . . . . . . . . . . . Feedback Blocked . | . . . . . . . . . . . . . . . . . . . . . . Robot Schematics Acquired . | . . . . . . . . . . . . . . . . . . . . . . Robots Built . | . . . . . . . . . . . . . . . . . . . . . . Matter . | . . . . . . . . . . . . . . . . . . . . . . Time . | . . . . . . . . . . . . . . . . . . . . . . Total Robot Build Rating . | . . . . . . . . . . . . . . . . . . . . . . Part Schematics Acquired 11 | . . . . . . . 2 3 . . 4 . . . . 2 . . . . . Parts Built 2 | . . . . . . . . 2 . . . . . . . . . . . . . Matter 168 | . . . . . . . . 168 . . . . . . . . . . . . . Time 42 | . . . . . . . . 42 . . . . . . . . . . . . . Total Part Build Rating 8 | . . . . . . . . 8 . . . . . . . . . . . . . Parts Repaired 13 | . 2 . 1 . . . 3 6 . . . . . . . . . . . . 1 Time 446 | . 52 . 26 . . . 108 232 . . . . . . . . . . . . 28 Parts Recycled . | . . . . . . . . . . . . . . . . . . . . . . Recycled Matter . | . . . . . . . . . . . . . . . . . . . . . . Retrieved Matter . | . . . . . . . . . . . . . . . . . . . . . . Retrieved Components . | . . . . . . . . . . . . . . . . . . . . . . Parts Scanalyzed 6 | . . . 1 . . . 2 1 . . . . . . . 2 . . . . . Part Schematics Acquired 5 | . . . . . . . 2 1 . . . . . . . 2 . . . . . Parts Damaged . | . . . . . . . . . . . . . . . . . . . . . . Bothacking | -11 -10 -10 -9 -9 -9 -8 -8 -7 -7 -7 -7 -7 -6 -6 -6 -6 -6 -6 -6 -6 -5 ------------ Run | Scr Mat Min Mat Min Exi Min Mat Fac Low Low Zio Dee Pro Fac Was Fac Ext Cet Arc Hub Fac Used RIF Installer . | . . . . . . . . . . . . . . . . . . . . . . Robots Hacked . | . . . . . . . . . . . . . . . . . . . . . . Non-combat . | . . . . . . . . . . . . . . . . . . . . . . Combat . | . . . . . . . . . . . . . . . . . . . . . . Robot Hacks Applied . | . . . . . . . . . . . . . . . . . . . . . . Relay Couplers Released 6 | . . . . . . . . . . . . . . . . 2 . . . 3 1 Machine Destruction 6 | . . . . . . . . . . . . . . . . 2 . . . 3 1 Robots Rewired 16 | . . . . . . . . . . . . . . . . . 16 . . . . Allies Hacked 2 | . . . . . . . . . . . . . . . . 2 . . . . . Hacks Repelled . | . . . . . . . . . . . . . . . . . . . . . . Allies | -11 -10 -10 -9 -9 -9 -8 -8 -7 -7 -7 -7 -7 -6 -6 -6 -6 -6 -6 -6 -6 -5 -------- Run | Scr Mat Min Mat Min Exi Min Mat Fac Low Low Zio Dee Pro Fac Was Fac Ext Cet Arc Hub Fac Total Allies 54 | . . 3 . 1 . . 1 . . . . . . . 19 . 25 5 . . . Largest Group 19 | . . 3 3 1 . . 1 1 . . . . . . 19 19 16 14 13 11 . Highest-Rated Group 827 | . . 40 40 31 . . 26 26 . . . . . . 714 714 577 827 802 623 . Highest-Rated Ally 156 | . . 16 16 31 . . 26 26 . . . . . . 50 50 156 156 143 94 . Total Orders 24 | . . . . . . . 12 4 . . . . . . . . 4 2 2 . . STAY 12 | . . . . . . . 6 2 . . . . . . . . 2 1 1 . . FOLLOW 12 | . . . . . . . 6 2 . . . . . . . . 2 1 1 . . Ally Attacks 577 | . . 12 93 . . . . . . . . . . . . 136 145 69 35 87 . Total Damage 13485 | . . 89 973 . . . . . . . . . . . . 3590 3199 1656 1015 2963 . Kills 108 | . . 2 14 . . . . . . . . . . . . 29 24 13 4 22 . Allies Corrupted 7 | . . . . . . . . . . . . . . . . 2 . 1 . 4 . Allies Melted . | . . . . . . . . . . . . . . . . . . . . . . Intel | -11 -10 -10 -9 -9 -9 -8 -8 -7 -7 -7 -7 -7 -6 -6 -6 -6 -6 -6 -6 -6 -5 ------- Run | Scr Mat Min Mat Min Exi Min Mat Fac Low Low Zio Dee Pro Fac Was Fac Ext Cet Arc Hub Fac Robot Analysis Total 2 | . . . 1 . . . . 1 . . . . . . . . . . . . . Derelict Logs Recovered 4 | . . 1 . 1 . . . . 1 . . . 1 . . . . . . . . Drone Launches . | . . . . . . . . . . . . . . . . . . . . . . Drone Recoveries . | . . . . . . . . . . . . . . . . . . . . . . Exploration | -11 -10 -10 -9 -9 -9 -8 -8 -7 -7 -7 -7 -7 -6 -6 -6 -6 -6 -6 -6 -6 -5 ------------- Run | Scr Mat Min Mat Min Exi Min Mat Fac Low Low Zio Dee Pro Fac Was Fac Ext Cet Arc Hub Fac Turns Passed 31780 | 113 1030 1063 1497 1334 2642 1359 1909 3331 327 823 1402 4637 995 207 1226 1817 2224 659 671 1078 1436 Spaces Moved 15355 | 78 643 549 767 830 1281 586 798 1721 216 511 932 2150 521 76 558 917 660 292 327 487 455 Core 10 | 8 . . . . . . . . . . . . . . . . . . . . 2 Treads 4226 | . 202 549 364 94 789 586 541 238 . . . 863 . . . . . . . . . Legs 4810 | . . . . . 22 . . . . . . 497 521 76 558 917 660 292 327 487 453 Wheels 6309 | 70 441 . 403 736 470 . 257 1483 216 511 932 790 . . . . . . . . . Hover . | . . . . . . . . . . . . . . . . . . . . . . Flight . | . . . . . . . . . . . . . . . . . . . . . . Fastest Speed 50 | 50 80 180 110 120 130 210 130 130 140 150 150 110 190 169 169 169 169 186 186 186 163 Average Speed 168 | 76 109 180 159 138 174 210 184 148 148 150 150 177 190 169 169 169 198 187 186 189 197 Slowest Speed 1100 | 80 180 180 210 210 230 210 210 230 150 150 150 230 190 169 169 169 202 202 186 210 1100 Overloaded Moves . | . . . . . . . . . . . . . . . . . . . . . . Propulsion Burnouts . | . . . . . . . . . . . . . . . . . . . . . . Robots Hopped . | . . . . . . . . . . . . . . . . . . . . . . Cave-ins Triggered . | . . . . . . . . . . . . . . . . . . . . . . Exploration Rate (%) 66 | 5 69 90 78 99 92 97 80 58 52 62 85 80 70 3 95 33 72 70 96 50 17 Regions Visited 21 Branch Regions 13 Pre-discovered Areas 7 | . 1 1 1 . 1 . . . 1 . 1 . 1 . . . . . . . . Known Exits Taken 6 | . . . . . . . . 1 1 1 1 . . . . 1 . . . 1 . Unknown Exits Taken 13 | 1 1 1 1 1 1 1 1 . . . . 1 1 . . . 1 1 1 . . Scrap Searched 14 | . . 2 . . . 1 . . 3 3 1 . 4 . . . . . . . . Spaces Dug 401 | . 4 . . . 9 . 11 7 . . . 10 2 . 4 7 10 . . 335 2 Terrain Destroyed 1218 | . 4 9 34 39 34 49 108 35 . 23 . 14 14 3 25 35 26 8 5 347 406 Melee 8 | . . . . . . . 1 7 . . . . . . . . . . . . . Projectile 215 | . 4 . 1 3 13 16 14 . . . . 14 2 3 25 19 26 8 5 14 48 AOE 995 | . . 9 33 36 21 33 93 28 . 23 . . 12 . . 16 . . . 333 358 Terrain Rammed . | . . . . . . . . . . . . . . . . . . . . . . Walls Destroyed . | . . . . . . . . . . . . . . . . . . . . . . Machines Disabled . | . . . . . . . . . . . . . . . . . . . . . . Actions | -11 -10 -10 -9 -9 -9 -8 -8 -7 -7 -7 -7 -7 -6 -6 -6 -6 -6 -6 -6 -6 -5 --------- Run | Scr Mat Min Mat Min Exi Min Mat Fac Low Low Zio Dee Pro Fac Was Fac Ext Cet Arc Hub Fac Total 19727 | 108 834 611 952 937 1549 665 1093 2300 222 555 938 2904 523 147 710 1070 1524 348 370 596 771 Wait 2409 | . 78 32 65 57 85 48 161 360 . 26 . 468 . 64 73 65 643 8 20 56 100 Move 15335 | 77 642 548 766 829 1280 585 797 1720 215 510 931 2149 520 76 557 916 659 291 326 486 455 Hop . | . . . . . . . . . . . . . . . . . . . . . . Pick Up 278 | 13 18 10 25 3 42 1 12 34 1 4 3 73 . . 6 2 6 7 3 5 10 Fast Attach 23 | . . 1 1 . 2 . 5 7 . . . 6 . . . 1 . . . . . Attach 109 | 7 3 1 4 1 14 . 2 15 1 3 1 22 . 1 1 1 4 3 . 4 21 Detach 17 | . 1 . . . 1 . . 3 1 . . 4 . . . . 3 . . 3 1 Swap 185 | . 21 3 28 7 10 2 25 30 3 2 . 21 . 2 1 3 2 5 1 3 16 Drop 240 | . 7 7 15 2 36 1 17 25 1 3 3 80 . . 5 5 10 6 3 10 4 Fire 902 | 11 64 9 48 34 37 28 73 99 . 7 . 81 3 4 67 71 30 28 17 27 164 Melee 52 | . . . . 4 40 . 1 7 . . . . . . . . . . . . . Ram . | . . . . . . . . . . . . . . . . . . . . . . Kick 3 | . . . . . . . . . . . . . . . . 1 . . . 2 . Crush . | . . . . . . . . . . . . . . . . . . . . . . Escape Stasis 15 | . . . . . . . . . . . . . . . . 5 10 . . . . Rewire 157 | . . . . . . . . . . . . . . . . . 157 . . . . Trap 2 | . . . . . 2 . . . . . . . . . . . . . . . . Miscellaneous . | . . . . . . . . . . . . . . . . . . . . . . Route ------- -11/Scrapyard -10/Materials (discovered 4 exits: *Mat x2 / [*Min x2]) -10/Mines (discovered 2 exits: *Mat x2) -9/Materials (discovered 3 exits: *Mat / *Min / [*Sto]) -9/Mines (discovered 4 exits: *Mat x2 / *Exi / *Zio) -9/Exiles -8/Mines (discovered 2 exits: *Mat x2) -8/Materials (discovered 2 exits: *Fac x2) -7/Factory (discovered 4 exits: *Fac x2 / *Low x2) -7/Lower Caves -7/Lower Caves (discovered 2 exits: *Fac / *Zio) -7/Zion (discovered 2 exits: *Dee / [*Pro]) -7/Deep Caves -6/Proximity Caves -6/Factory -6/Waste -6/Factory (discovered 3 exits: *Fac / *Low / *Ext) -6/Extension (discovered 2 exits: *Fac / *Cet) -6/Cetus (discovered 2 exits: *Fac / *Arc) -6/Archives (discovered 3 exits: *Fac / *Hub x2) -6/Hub_04(d) (discovered 3 exits: *Fac x3) -5/Factory (discovered 2 exits: Upp x2) History --------- Turn | Location | Event 8 | -11/Scrapyard | Discovered new exit (range 16) 114 | -11/Scrapyard | Entered Materials 311 | -10/Materials | Build established: Mutant 501 | -10/Materials | Discovered new exit (range 7) 550 | -10/Materials | Repaired Lgt. Treads 784 | -10/Materials | Repaired Assault Rifle 823 | -10/Materials | Discovered new exit (range 16) 849 | -10/Materials | Discovered new exit (range 14) 1092 | -10/Materials | Discovered new exit (range 9) 1144 | -10/Materials | Entered Mines 1361 | -10/Mines | Assisted by bots powering up and referring to "LRC-V3" 1532 | -10/Mines | Discovered new exit (range 4) 1663 | -10/Mines | Joined a pair of Derelicts in attacking an 0b10 outpost 1748 | -10/Mines | Discovered new exit (range 10) 2207 | -10/Mines | Entered Materials 2207 | -9/Materials | Accompanied by 3 allies 2207 | -9/Materials | Evolved 2 slots: Utility x2 2606 | -9/Materials | Discovered new exit (range 12) 2867 | -9/Materials | Build established: Hauler-Mutant 3227 | -9/Materials | Discovered new exit (range 3) 3328 | -9/Materials | Repaired Lgt. Armor Plating 3377 | -9/Materials | Discovered new exit (range 16) 3704 | -9/Materials | Entered Mines 3733 | -9/Mines | Discovered new exit (range 5) 3742 | -9/Mines | A Derelict revealed a hidden shortcut to a safe place 3831 | -9/Mines | Learned Materials security intel 3850 | -9/Mines | Found a hidden stash of uninstalled traps 3970 | -9/Mines | Excavation squad dispatched 3970 | -9/Mines | A large section of the Mines collapsed 4079 | -9/Mines | Discovered new exit (range 5) 4530 | -9/Mines | Deemed a non-threat by the Exiles lab entrance 4530 | -9/Mines | Discovered new exit (range 5) 4665 | -9/Mines | Received a Mining Laser from a helpful Derelict 4845 | -9/Mines | Received a Rocket Launcher from a helpful Derelict 5038 | -9/Mines | Entered Exiles 5070 | -9/Exiles | Met 8R-AWN 5089 | -9/Exiles | Met EX-HEX 5159 | -9/Exiles | Met EX-DEC 5184 | -9/Exiles | Learned location of Zion (-7) 5240 | -9/Exiles | Discovered new exit (range 14) 5339 | -9/Exiles | Met EX-BIN 5355 | -9/Exiles | Aligned with FarCom system 5356 | -9/Exiles | Given EX-Vault access code 5386 | -9/Exiles | Opened EX-Vault 5416 | -9/Exiles | Warned to stay clear of 0b10 Research branches 5724 | -9/Exiles | Attacked by the Exiles 5901 | -9/Exiles | Core integrity fell below 50% 5926 | -9/Exiles | Lost 4 parts (1p2n1u) 5945 | -9/Exiles | Destroyed 8R-AWN 5950 | -9/Exiles | Build established: Mutant 5950 | -9/Exiles | Found Prototype Ballistic Gun 5952 | -9/Exiles | Found Prototype Ballistic Gun 5955 | -9/Exiles | Found Prototype Processor 5962 | -9/Exiles | Found AS-neutralizer No. 17b 5990 | -9/Exiles | Identified 8R-AWN's Boregun (x2) 6319 | -9/Exiles | Destroyed EX-DEC 6381 | -9/Exiles | Destroyed EX-BIN 6394 | -9/Exiles | Destroyed EX-HEX 6991 | -9/Exiles | Build established: Hauler-Mutant 7680 | -9/Exiles | Entered Mines 8448 | -8/Mines | Discovered new exit (range 5) 8955 | -8/Mines | Discovered new exit (range 14) 9039 | -8/Mines | Entered Materials 9039 | -8/Materials | Evolved 2 slots: Utility x1, Weapon x1 9437 | -8/Materials | Build established: Hauler-Gunner 10074 | -8/Materials | Discovered new exit (range 5) 10338 | -8/Materials | Discovered new exit (range 15) 10458 | -8/Materials | Repaired Arm. Treads 10498 | -8/Materials | Repaired Arm. Treads 10531 | -8/Materials | Repaired Arm. Wheel 10727 | -8/Materials | Identified Exp. Targeting Computer 10948 | -8/Materials | Entered Factory 10948 | -7/Factory | Accompanied by 1 ally 10948 | -7/Factory | Evolved 2 slots: Utility x2 11020 | -7/Factory | Identified exit to Lower Caves 11329 | -7/Factory | Build established: Hacker-Gunner 11396 | -7/Factory | Discovered new exit (range 12) 11668 | -7/Factory | Repaired Arm. Wheel 11750 | -7/Factory | Repaired Cold Fusion Reactor 12186 | -7/Factory | Discovered new exit (range 10) 12271 | -7/Factory | Repaired Arm. Wheel 12619 | -7/Factory | Build established: Hauler-Tank 12785 | -7/Factory | Repaired Arm. Wheel 13058 | -7/Factory | Garrison activated, responded to threat 13226 | -7/Factory | EX Chip 1 fried by hacking feedback 13764 | -7/Factory | Fabricated Imp. Salvage Targeting Computer (x2) 13920 | -7/Factory | Repaired Dynamic Insulation System 13965 | -7/Factory | Repaired Flak Gun 14007 | -7/Factory | Build established: Hacker-Mutant 14279 | -7/Factory | Entered Lower Caves 14351 | -7/Lower Caves | Spotted B-75 Beast 14568 | -7/Lower Caves | Discovered new exit (range 9) 14604 | -7/Lower Caves | Identified exit to Lower Caves 14606 | -7/Lower Caves | Entered another Lower Caves area 14644 | -7/Lower Caves | Discovered new exit (range 9) 14661 | -7/Lower Caves | Build established: Hauler-Skirmisher 14915 | -7/Lower Caves | Attracted the attention of an 0b10 checkpoint 14973 | -7/Lower Caves | Encountered a Warlord checkpoint 15295 | -7/Lower Caves | Discovered new exit (range 13) 15313 | -7/Lower Caves | Identified exit to Zion 15429 | -7/Lower Caves | Entered Zion 15528 | -7/Zion | System corruption cleaned by Quarantine Array 15591 | -7/Zion | Discovered new exit (range 12) 15795 | -7/Zion | Found CR-A16's Pointy Stick 15856 | -7/Zion | Received a visual enhancement algorithm 15867 | -7/Zion | Learned Factory emergency access door positions 16101 | -7/Zion | Acquired unknown access codes intercepted by a Zionite 16797 | -7/Zion | Opened final containment barrier to the Deep Caves 16820 | -7/Zion | Discovered new exit (range 5) 16823 | -7/Zion | Saw the warning signs outside the Deep Caves entrance 16829 | -7/Zion | Identified exit to Deep Caves 16831 | -7/Zion | Entered Deep Caves 16943 | -7/Deep Caves | Build established: Hauler-Tank 17205 | -7/Deep Caves | Attacked by Z-Imprinter 17239 | -7/Deep Caves | Core integrity fell below 50% 17242 | -7/Deep Caves | Destroyed Z-Imprinter 17266 | -7/Deep Caves | Lost 4 parts (1u3w) 17288 | -7/Deep Caves | Found Prototype Protection 17289 | -7/Deep Caves | Identified Zio. Weapon Casing 17298 | -7/Deep Caves | Found Prototype Device 17301 | -7/Deep Caves | Identified Zio. Metafield Generator 17544 | -7/Deep Caves | Z-Facility disabled 17751 | -7/Deep Caves | Build established: Scavenger-Mutant 18003 | -7/Deep Caves | Found Prototype Protection 18004 | -7/Deep Caves | Identified Zio. Heavy Carapace 18055 | -7/Deep Caves | Found Zio. Heavy Carapace 18066 | -7/Deep Caves | Found Zio. Weapon Casing 18291 | -7/Deep Caves | Discovered new exit (range 6) 18706 | -7/Deep Caves | Build established: Hauler-Mutant 18747 | -7/Deep Caves | Spotted as-53148 18761 | -7/Deep Caves | Destroyed as-53148 19365 | -7/Deep Caves | Found Zio. Heavy Carapace 19837 | -7/Deep Caves | Exposed GOLEM chamber 19841 | -7/Deep Caves | Found GOLEM Unit 19845 | -7/Deep Caves | Found GOLEM Unit 19850 | -7/Deep Caves | Found GOLEM Unit 20309 | -7/Deep Caves | Build established: Golem 20746 | -7/Deep Caves | Build established: Hauler-Mutant 21150 | -7/Deep Caves | Found GOLEM Unit 21155 | -7/Deep Caves | Found GOLEM Unit 21202 | -7/Deep Caves | Found GOLEM Unit 21468 | -7/Deep Caves | Entered Proximity Caves 22264 | -6/Proximity Caves | Discovered new exit (range 10) 22463 | -6/Proximity Caves | Entered Factory 22463 | -6/Factory | Evolved 2 slots: Power x1, Propulsion x1 22670 | -6/Factory | Sucked down chute 22670 | -6/Factory | Entered Waste 22727 | -6/Waste | Spotted C-40 Crusher 22727 | -6/Waste | Spotted C-40 Crusher 22738 | -6/Waste | Destroyed C-40 Crusher 22803 | -6/Waste | Destroyed C-40 Crusher 22868 | -6/Waste | Spotted C-40 Crusher 22868 | -6/Waste | Spotted C-40 Crusher 22908 | -6/Waste | Spotted C-40 Crusher 22970 | -6/Waste | Destroyed C-40 Crusher 22997 | -6/Waste | Spotted C-40 Crusher 23009 | -6/Waste | Destroyed C-40 Crusher 23091 | -6/Waste | Destroyed C-40 Crusher 23175 | -6/Waste | Destroyed C-40 Crusher 23187 | -6/Waste | Found Damper Plating 23440 | -6/Waste | Discovered new exit (range 13) 23646 | -6/Waste | Warlord forces began an assault 23896 | -6/Waste | Entered Factory 23896 | -6/Factory | Accompanied by 19 allies 24573 | -6/Factory | Discovered new exit (range 15) 24596 | -6/Factory | First assault squad dispatched 24597 | -6/Factory | Identified exit to Factory 25142 | -6/Factory | Discovered new exit (range 16) 25175 | -6/Factory | Identified exit to Lower Caves 25402 | -6/Factory | Destroyed 8 combat bots 25707 | -6/Factory | Discovered new exit (range 6) 25712 | -6/Factory | Identified exit to Extension 25713 | -6/Factory | Entered Extension 26112 | -6/Extension | Build established: Hauler-Golem 26810 | -6/Extension | Rescued A7 26863 | -6/Extension | Rescued a captive Derelict 27013 | -6/Extension | Rescued a captive Derelict 27014 | -6/Extension | Rescued a captive Derelict 27052 | -6/Extension | Rescued a captive Derelict 27054 | -6/Extension | Rescued a captive Derelict 27128 | -6/Extension | Rescued a captive Derelict 27130 | -6/Extension | Rescued a captive Derelict 27254 | -6/Extension | Build established: Commander-Gunner 27713 | -6/Extension | Disrupted transfer network 27856 | -6/Extension | Rescued a captive Derelict 27900 | -6/Extension | Build established: Commander-Tank 27915 | -6/Extension | Discovered exit to Factory (range 10) 27917 | -6/Extension | Discovered new exit (range 6) 27937 | -6/Extension | Entered Cetus 27937 | -6/Cetus | Accompanied by 11 allies (A7) 27942 | -6/Cetus | Acquired a Cetus Manufacturing Module code from A7 27964 | -6/Cetus | Destroyed Cetus Guard 27967 | -6/Cetus | Destroyed Cetus Guard 27979 | -6/Cetus | Spotted Cetus Guard 27979 | -6/Cetus | Destroyed Cetus Guard 28155 | -6/Cetus | Discovered exit to Factory (range 15) 28227 | -6/Cetus | Build established: Commander-Gunner 28271 | -6/Cetus | Started Cetus Manufacturing Module 28296 | -6/Cetus | Manufactured an Enhanced Grunt 28321 | -6/Cetus | Manufactured an Enhanced Grunt 28321 | -6/Cetus | Escorted A7 to Cetus Mainframe 28346 | -6/Cetus | Manufactured an Enhanced Grunt 28371 | -6/Cetus | Manufactured an Enhanced Grunt 28396 | -6/Cetus | Manufactured an Enhanced Grunt 28529 | -6/Cetus | Discovered new exit (range 15) 28596 | -6/Cetus | Entered Archives 28596 | -6/Archives | Accompanied by 13 allies (A7) 28601 | -6/Archives | Build established: Commander-Mutant 28601 | -6/Archives | Received a hacking code to weaken MAIN.C 28648 | -6/Archives | Unable to access archive contents 28667 | -6/Archives | Unable to access archive contents 28674 | -6/Archives | Discovered new exit (range 16) 28685 | -6/Archives | Unable to access archive contents 28693 | -6/Archives | Discovered new exit (range 13) 28708 | -6/Archives | Unable to access archive contents 28940 | -6/Archives | Discovered exit to Factory (range 13) 29267 | -6/Archives | Entered Hub_04(d) 29267 | -6/Hub_04(d) | Accompanied by 11 allies 29400 | -6/Hub_04(d) | Discovered exit to Factory (range 9) 29421 | -6/Hub_04(d) | Discovered exit to Factory (range 5) 29495 | -6/Hub_04(d) | Garrison activated, responded to threat 29617 | -6/Hub_04(d) | First assault squad dispatched 29812 | -6/Hub_04(d) | Discovered exit to Factory (range 10) 29968 | -6/Hub_04(d) | Build established: Commander-Golem 30259 | -6/Hub_04(d) | Network Hub disabled 30272 | -6/Hub_04(d) | Network Hub disabled 30316 | -6/Hub_04(d) | Spotted Lightning 30317 | -6/Hub_04(d) | Spotted Lightning 30317 | -6/Hub_04(d) | Spotted Lightning 30320 | -6/Hub_04(d) | Spotted Lightning 30322 | -6/Hub_04(d) | Spotted Lightning 30322 | -6/Hub_04(d) | Spotted Lightning 30322 | -6/Hub_04(d) | Spotted Lightning 30322 | -6/Hub_04(d) | Spotted Lightning 30324 | -6/Hub_04(d) | Spotted Lightning 30325 | -6/Hub_04(d) | Spotted Lightning 30326 | -6/Hub_04(d) | Spotted Lightning 30327 | -6/Hub_04(d) | Spotted Lightning 30345 | -6/Hub_04(d) | Entered Factory 30345 | -5/Factory | Evolved 2 slots: Utility x2 30645 | -5/Factory | First assault squad dispatched 31143 | -5/Factory | Build established: Hauler-Mutant 31268 | -5/Factory | Repaired Adv. Shield Generator 31564 | -5/Factory | Identified exit to Upper Caves 31658 | -5/Factory | Destroyed 12 combat bots 31664 | -5/Factory | Lost 9 parts (1p5u3w) 31695 | -5/Factory | Spotted B-75 Beast 31721 | -5/Factory | Core integrity fell below 50% 31740 | -5/Factory | Lost 7 parts (1p3n3w) 31754 | -5/Factory | High security lockdown imminent 31771 | -5/Factory | Core integrity fell below 20% 31781 | -5/Factory | Destroyed by B-75 Beast with Heavy Machine Gun Last Messages --------------- 31756_ H-66 Slayer destroyed. 31757_ The unstable cave ceiling collapses. 31758_ Asb. Focal Cannon destroyed. 31758_ Knocked back. 31758_ G-50 Soldier destroyed. 31760_ Slug penetrates Wall. 31760_ Penetrated by Slug. 31760_ G-50 Soldier destroyed. 31761_ H-66 Slayer destroyed. 31761_ Destroyed Wheel. 31761_ ALERT: Construction progress impeded, dispatching reinforcements to local area. 31764_ The unstable cave ceiling collapses. 31764_ Hvy. Missile Launcher destroyed. 31764_ Cold Fusion Reactor destroyed. 31765_ Dropped Hcp. Storage Unit. 31766_ The unstable cave ceiling collapses. 31776_ Gauss Rifle crushed. 31777_ The unstable cave ceiling collapses. 31778_ GOLEM Unit destroyed. Map ----- +----------------------------------------------------+ | ????????????????????????????????????? | | ????????????????????????????????????" | | ????????? ??????????????????" | | ??????? """""""????????"""??? """ | | ???????? ????????? ??? | | ????????# ???????? ???? | | ????????# ????????# #?????# | | ????????# ????????# #?????# | | ????????# #????????# #?????# | | ????????# #????????# # ?? # | | ????????? #????????# # ? # | | ?????????? ########## # ! # | | ???????????# # # # # | | ???????????# # # #? + | | ???????????# # # #?? # | | ???????????#^ # # #?? # | | ???????????+ + *### | | ???????????# %# %### | | ???????????# =* # ==*=%% ! | | ???????????+![BB%# !%== == | | ???????????##;BB## % %%! %!= | | ??###??????# % ###### ##+#=* = | | ??? ????## ## = # # | | ??? """ ??#*!!%%# ## #?## | | ??? """ # ==%= # [!= #??? | | ??? """ ! /@ = [ [!= #??? | | ??# # % # [== #??? | | ??# [; % [ # #??? | | ??# #; g = #??? | | ??# ?"T"" ## # ""T"" #??? | | ??#??"""""??# # # """"" #??? | | ??????###???# ## #?######??? | | ????????????# #? # # ##?????????? | | ????????????# #?###+### ##??????????? | | ????????????? #????? ??? ??????????? | | ?????????????##??????"???"??????????? | | ?????????????????????? ?????????????? | | ????????????????????????????????????? | | ????????????????????????????????????? | | ????????????????????????????????????? | | ????????????????????????????????????? | | ????????????????????????????????????? | | ????????????????????????????????????? | | ????????????????????????????????????? | | ????????????????????????????????????? | | ????????????????????????????????????? | | ????????????????????????????????????? | | ????????????????????????????????????? | | ????????????????????????????????????? | | ????????????????????????????????????? | +----------------------------------------------------+ Best States ------------- Heat Dissipation 64 Energy Generation 45 Energy Capacity 2300 Matter Stores 431 Matter Capacity 500 Sight Range 16 Robot Scan Range 22 Terrain Scan Density 10 Additional Mass Support 10 EM Shielding 2 Armor Coverage 1200 Resistance: KI 30 Resistance: EM 90 Weapon Shielding 100 Weapon Cycling 25 Phase Shifting 15 Evasion (%) 55 Targeting Accuracy 12 Armor Integrity Analysis 33 Recoil Reduction 2 Salvage Targeting 2 Offensive Hacking 24 Defensive Hacking 20 Item Schematics ----------------- Exp. Targeting Computer | -8/Materials | Scanalyzed Adv. Signal Interpreter | -8/Materials | Scanalyzed Lrn. Sensor Array | -7/Factory | Scanalyzed Imp. Salvage Targeting Computer | -7/Factory | Hacked Adv. Melee Analysis Suite | -7/Factory | Hacked Beamcaster | -7/Zion | Free Battle Cannon | -7/Zion | Free Flamer | -7/Zion | Free Ripper | -7/Zion | Free Adv. Shield Generator | -6/Factory | Scanalyzed Adv. Phase Shifter | -6/Factory | Scanalyzed Robot Schematics ------------------ None Fabricated ------------ Imp. Salvage Targeting Computer | x2 | -7/Factory Alien Tech Used ----------------- None Achievements -------------- None Challenges ------------ None Game ------ Seed CloakingDeepStorage Manual? 0 Play Time 05:24:41 Cumulative 288.2 hours Start 2021.02.06 @ 11:11:17 End 2021.02.07 @ 02:43:06 Sessions 15 Manual Loads 0 Difficulty Rogue Special Mode None Game No. 105 Rogue 101 Adventurer 4 Explorer 0 Win Type - Total 4 Types 3/0/1/0/0/0/0/0/0 Lore% 67 Gallery% 76 Achievement% 62 Wizard Run 0 Options --------- ASCII 1 Keyboard 0 Movement Arrows Keybinds 0 Fullscreen 1 Font 18/Smallcaps Map View 76x50 Tactical HUD 1 Map Filters NONE Filters NONE Steam 1 RUN: 1e8fb48e-b2b6-4e7d-9d1c-21ea820ae420